bitfinex-derivatives/quotes_ETHF0:USTF0_20250909
["timestamp","ask_amount","ask_price","bid_price","bid_amount"]
[1757437266850,5.0662,4291.6,4291.5,3.098]
[1757437267442,5.0662,4291.6,4291.5,3.42764634]
[1757437268947,5.1825,4291.6,4291.5,3.42764634]
[1757437269551,0.1163,4291.6,4291.5,3.42764634]
[1757437270045,0.1163,4291.6,4291.5,36.99864634]
[1757437272849,0.1163,4291.6,4291.5,36.76064634]
[1757437273044,0.1163,4291.6,4291.5,36.99764634]
[1757437274253,0.8663,4291.6,4291.5,36.99764634]
[1757437278155,0.8663,4291.6,4291.5,36.76064634]
[1757437278359,0.8663,4291.6,4291.5,36.99764634]
[1757437278557,1.4995,4291.6,4291.5,36.662]
[1757437279047,1.4995,4291.6,4291.5,36.425]
[1757437279251,1.4995,4291.6,4291.5,36.662]
[1757437279456,1.6395,4291.6,4291.5,36.662]
[1757437281356,0.9205,4291.6,4291.5,36.662]
[1757437281857,0.2563,4291.6,4291.5,36.662]
[1757437283058,3.2078,4292.3,4292.2,2.4451]
[1757437283359,8.3778,4292.3,4292.2,2.6821]
[1757437283562,5.17,4292.3,4292.2,2.6821]
[1757437284862,1.71,4292.3,4292.2,2.6821]
[1757437285859,4.2375,4293.3,4292.3,1.0843]
[1757437285860,1.0297,4293.2,4292.3,1.0843]
[1757437286064,1.0297,4293.2,4292.2,5.5978]
[1757437286065,5.8076,4293.2,4293.1,2.4451]
[1757437286365,5.8076,4293.2,4293.1,36.2441]
[1757437288266,5.8076,4293.2,4293.1,35.1598]
[1757437288861,5.8076,4293.2,4293.1,34.4665]
[1757437289063,5.8076,4293.2,4293.1,33.799]
[1757437290566,5.8076,4293.2,4293.1,34.8833]
[1757437291368,6.5266,4293.2,4293.1,1.7518]
[1757437291667,6.5266,4293.2,4293.1,34.4615]
[1757437291866,6.5266,4293.2,4293.1,35.5458]
[1757437292161,4.1,4293.2,4293.1,36.2391]
[1757437292469,4.1,4293.2,4293.1,39.4469]
[1757437297162,0.27,4293.2,4293.1,39.4469]
[1757437298173,1.9165,4294.0,4293.9,2.4451]
[1757437298474,7.4665,4294.0,4293.9,2.6821]
[1757437298678,8.1855,4294.0,4293.9,2.6821]
[1757437300567,8.1855,4294.0,4293.9,1.3608]
[1757437300772,7.1558,4294.0,4293.9,0.237]
[1757437301280,8.1855,4294.0,4293.9,0.237]
[1757437301478,8.1855,4294.0,4293.9,0.9045]
[1757437301773,8.1855,4294.0,4293.9,2.6821]
[1757437301974,8.1855,4294.0,4293.9,1.5978]
[1757437302173,8.1855,4294.0,4293.9,2.6821]
[1757437303676,8.1855,4294.0,4293.9,2.4451]
[1757437303874,8.1855,4294.0,4293.9,2.6821]
[1757437305374,8.1855,4294.0,4293.9,2.4451]
[1757437305575,8.1855,4294.0,4293.9,2.6821]
[1757437306178,8.1855,4294.0,4293.9,2.6811]
[1757437306378,8.1855,4294.0,4293.9,0.6675]
[1757437306576,8.1855,4294.0,4293.9,1.6198]
[1757437306878,7.9311,4294.0,4293.9,2.6748]
[1757437307079,8.3743,4294.0,4293.9,2.6748]
[1757437309282,8.3743,4294.0,4293.9,2.4388]
[1757437309481,8.3743,4294.0,4293.9,2.6758]
[1757437310685,8.3743,4294.0,4293.9,2.4388]
[1757437310883,8.3743,4294.0,4293.9,1.3838]
[1757437311083,8.3743,4294.0,4293.9,0.236]
[1757437311276,8.3743,4294.0,4293.7,3.2078]
[1757437311582,2.4625,4293.9,4293.8,0.236]
[1757437311777,3.9825,4293.9,4293.8,0.9541]
[1757437311978,3.9825,4293.9,4293.7,3.2078]
[1757437312176,2.4625,4293.8,4293.7,3.2078]
[1757437312377,3.1625,4293.8,4293.7,3.4438]
[1757437312585,3.1625,4293.8,4293.7,4.1619]
[1757437313586,3.1625,4293.8,4293.7,3.9259]
[1757437313886,3.1625,4293.8,4293.7,4.1619]
[1757437314280,3.1625,4293.8,4293.7,3.2078]
[1757437314479,3.1625,4293.8,4293.7,4.1619]
[1757437314682,3.1625,4293.8,4293.7,5.9332]
[1757437315885,3.1625,4293.8,4293.7,3.9259]
[1757437316082,3.1625,4293.8,4293.7,4.1619]
[1757437316583,3.1625,4293.8,4293.7,3.2078]
[1757437316783,3.1625,4293.8,4293.7,3.4438]
[1757437316980,2.489,4293.8,4293.7,5.9332]
[1757437317686,2.489,4293.8,4293.7,5.6972]
[1757437317880,2.489,4293.8,4293.7,5.9332]
[1757437318075,0.7,4293.8,4293.7,5.9332]
[1757437318274,1.0953,4294.3,4293.8,1.055]
[1757437318484,7.1725,4294.3,4294.2,0.7181]
[1757437318686,7.1725,4294.3,4294.2,0.9541]
[1757437320688,7.1725,4294.3,4294.2,2.7254]
[1757437321082,7.1725,4294.3,4294.2,5.9332]
[1757437321286,3.2078,4295.2,4294.3,2.4894]
[1757437321486,9.725,4295.2,4295.1,2.4894]
[1757437321784,9.725,4295.2,4295.1,0.236]
[1757437322289,9.725,4295.2,4295.1,0.52209556]
[1757437322488,9.725,4295.2,4295.1,1.57709556]
[1757437322676,9.725,4295.2,4295.1,2.29519556]
[1757437323290,10.8203,4295.2,4295.1,2.29519556]
[1757437323485,10.8203,4295.2,4295.1,1.57709556]
[1757437324092,10.8203,4295.2,4295.1,0.28609556]
[1757437324289,10.8203,4295.2,4295.1,0.52209556]
[1757437324587,10.8203,4295.2,4295.1,0.52188828]
[1757437325688,10.8203,4295.2,4295.1,0.28588828]
[1757437325890,10.8203,4295.2,4295.1,0.52188828]
[1757437326190,10.8203,4295.2,4295.1,1.055]
[1757437326391,10.8203,4295.2,4295.1,1.57682998]
[1757437327095,10.8203,4295.2,4295.1,2.29492998]
[1757437328287,10.8203,4295.2,4295.1,3.01122998]
[1757437328485,10.8203,4295.2,4295.1,2.29492998]
[1757437329489,9.725,4295.2,4295.1,3.01122998]
[1757437330195,10.8203,4295.2,4295.1,1.57682998]
[1757437330494,10.8203,4295.2,4295.1,0.52182998]
[1757437330682,9.725,4295.2,4295.1,3.01122998]
[1757437331281,8.3578,4295.2,4295.1,3.01122998]
[1757437331488,5.9778,4295.2,4295.1,3.01122998]
[1757437332298,7.345,4295.2,4295.1,3.01122998]
[1757437332589,8.4403,4295.2,4295.1,2.05892998]
[1757437332895,5.6703,4295.2,4295.1,2.29492998]
[1757437333490,4.575,4295.2,4295.1,3.01122998]
[1757437333997,5.6703,4295.2,4295.1,3.01122998]
[1757437335101,7.7203,4295.2,4295.1,1.57682998]
[1757437335300,7.7203,4295.2,4295.1,1.34082998]
[1757437335494,9.9103,4295.2,4295.1,1.57682998]
[1757437335700,9.9103,4295.2,4295.1,0.52182998]
[1757437335897,9.9103,4295.2,4295.1,0.28558496]
[1757437336194,10.7903,4295.2,4295.1,0.52158496]
[1757437337600,10.7903,4295.2,4295.1,1.56348496]
[1757437337999,10.7903,4295.2,4295.1,2.29038496]
[1757437338197,6.675,4295.2,4295.1,3.04288496]
[1757437338898,7.7416,4295.2,4295.1,3.04288496]
[1757437339092,7.7416,4295.2,4295.1,2.29038496]
[1757437343999,5.6416,4295.2,4295.1,0.52158496]
[1757437344199,10.3116,4295.2,4295.1,0.52158496]
[1757437345095,10.3116,4295.2,4295.1,0.52553929]
[1757437346405,10.3116,4295.2,4295.1,0.28953929]
[1757437346607,10.3116,4295.2,4295.1,0.52553929]
[1757437346902,10.3116,4295.2,4295.1,0.28953929]
[1757437347103,10.3116,4295.2,4295.1,0.52553929]
[1757437347304,10.3116,4295.2,4295.1,1.56743929]
[1757437348202,10.3116,4295.2,4295.1,0.28953929]
[1757437348508,10.3116,4295.2,4294.7,0.00349483]
[1757437348509,2.3696,4294.4,4294.3,33.535]
[1757437348808,10.2674,4294.4,4294.3,33.535]
[1757437349015,10.2674,4294.4,4294.3,33.771]
[1757437351814,15.06544021,4294.4,4293.4,1.0419]
[1757437352013,2.3696,4293.3,4293.2,1.0419]
[1757437352211,2.3696,4293.3,4293.2,0.236]
[1757437352517,2.3696,4293.3,4293.2,1.2779]
[1757437352912,4.4596,4293.3,4293.2,1.2779]
[1757437353113,7.0796,4293.3,4293.2,1.2779]
[1757437353820,7.0796,4293.3,4293.2,2.0048]
[1757437354316,6.1726,4293.3,4293.2,2.0048]
[1757437354916,6.1726,4293.3,4293.2,2.7573]
[1757437355922,5.4459,4293.3,4293.2,2.7573]
[1757437357720,4.71,4293.3,4293.2,2.7573]
[1757437359914,5.4459,4293.3,4293.2,2.7573]
[1757437360119,7.0796,4293.3,4293.2,2.0048]
[1757437360317,7.0796,4293.3,4293.2,1.2779]
[1757437360715,7.0796,4293.3,4293.2,1.0419]
[1757437360915,7.0796,4293.3,4293.2,1.2779]
[1757437363625,7.4396,4293.3,4293.2,2.0048]
[1757437364419,2.3696,4293.3,4293.2,2.0048]
[1757437364716,1.4626,4293.3,4293.2,2.7573]
[1757437364915,2.3696,4293.3,4293.2,2.7573]
[1757437367625,1.4626,4293.3,4293.2,2.7573]
[1757437370623,1.6126,4293.3,4293.2,2.7573]
[1757437371120,2.4833,4293.3,4293.2,2.7573]
[1757437371719,1.6126,4293.3,4293.2,2.7573]
[1757437371921,2.4833,4293.3,4293.2,2.7573]
[1757437372322,2.4833,4293.3,4293.2,2.5213]
[1757437372522,7.0833,4293.3,4293.2,1.2779]
[1757437373131,2.7633,4293.3,4293.2,1.9807]
[1757437373325,1.8926,4293.3,4293.2,2.6866]
[1757437373832,1.8926,4293.3,4293.2,2.4506]
[1757437374331,1.8926,4293.3,4293.2,2.6866]
[1757437374332,0.43,4293.3,4293.2,2.6866]
[1757437376431,1.1535,4293.3,4293.2,2.6866]
[1757437376629,2.7291,4293.3,4293.2,2.6866]
[1757437376833,6.9691,4293.3,4293.2,1.9807]
[1757437377132,6.5391,4293.3,4293.2,1.2779]
[1757437378230,6.5391,4293.3,4293.2,1.0419]
[1757437378432,6.5391,4293.3,4293.2,1.2779]
[1757437379331,6.5391,4293.3,4293.2,1.9807]
[1757437379930,6.5391,4293.3,4293.2,1.2779]
[1757437380230,6.5391,4293.3,4293.2,1.9807]
[1757437380729,6.5391,4293.3,4292.9,1.086]
[1757437380934,1.4284,4292.7,4292.5,35.0679]
[1757437381237,0.8707,4292.6,4292.5,34.623]
[1757437381430,0.7049,4292.7,4292.6,2.4947]
[1757437381732,6.5084,4292.7,4292.6,2.4947]
[1757437382629,7.3791,4292.7,4292.6,1.7888]
[1757437382834,0.8707,4292.6,4292.5,33.773]
[1757437383035,5.8807,4292.6,4292.5,34.859]
[1757437383933,5.8807,4292.6,4292.5,33.773]
[1757437384133,5.8807,4292.6,4292.5,34.859]
[1757437384726,5.8807,4292.6,4292.5,33.773]
[1757437384933,5.8807,4292.6,4292.5,33.537]
[1757437385236,5.8807,4292.6,4292.5,33.773]
[1757437385428,5.8807,4292.6,4292.5,34.859]
[1757437385828,5.01,4292.6,4292.5,35.2654]
[1757437386030,3.21129483,4293.0,4292.9,2.4947]
[1757437386231,3.21129483,4293.0,4292.9,2.7307]
[1757437386232,4.03129483,4293.0,4292.9,2.7307]
[1757437388733,4.75479483,4293.0,4292.9,2.7307]
[1757437389438,5.51039483,4293.0,4292.9,2.4947]
[1757437389633,10.11039483,4293.0,4292.9,2.0248]
[1757437390340,10.11039483,4293.0,4292.9,1.7888]
[1757437390536,0.8707,4292.6,4292.5,33.9434]
[1757437390841,5.48,4292.6,4292.5,34.1794]
[1757437391336,6.3507,4292.6,4292.5,35.2654]
[1757437391934,6.3507,4292.6,4292.5,33.537]
[1757437392135,6.3507,4292.6,4292.5,33.773]
[1757437392540,6.3507,4292.6,4292.5,34.859]
[1757437395440,6.3507,4292.6,4292.5,34.623]
[1757437395741,6.3507,4292.6,4292.5,34.859]
[1757437396537,6.3507,4292.6,4292.5,35.2654]
[1757437396737,5.48,4292.6,4292.5,35.2654]
[1757437397443,6.3555,4292.6,4292.5,35.2654]
[1757437398146,5.48,4292.6,4292.5,35.2654]
[1757437401346,6.3555,4292.6,4292.5,35.2654]
[1757437401946,9.5633,4292.6,4292.5,35.2654]
[1757437403342,8.6878,4292.6,4292.5,35.2654]
[1757437405947,5.48,4292.6,4292.5,35.2654]
[1757437406947,10.9632,4292.6,4292.5,3.1952]
[1757437407246,10.9632,4292.6,4292.5,2.9592]
[1757437407446,10.9632,4292.6,4292.5,1.322]
[1757437408537,10.9632,4292.6,4292.5,2.0624]
[1757437412151,10.9632,4292.6,4292.5,1.086]
[1757437412448,10.9632,4292.6,4292.5,1.322]
[1757437413450,9.3952,4292.6,4292.5,3.2197]
[1757437414153,5.48,4292.6,4292.5,3.2197]
[1757437418452,6.8799,4292.6,4292.5,2.9837]
[1757437418754,10.9632,4292.6,4292.5,3.2187]
[1757437419352,8.6878,4292.6,4292.5,3.2187]
[1757437421547,4.3641,4292.6,4292.5,3.2187]
[1757437421755,4.3641,4292.6,4292.5,7.2187]
[1757437422857,4.3641,4292.6,4292.5,7.2197]
[1757437423958,4.3641,4292.6,4292.5,2.9837]
[1757437424160,4.3641,4292.6,4292.5,3.2187]
[1757437424362,5.0715,4292.6,4292.5,2.9837]
[1757437424553,6.8513,4292.6,4292.5,3.2187]
[1757437424754,5.764,4292.6,4292.5,3.2187]
[1757437424954,5.0715,4292.6,4292.5,3.2187]
[1757437425163,4.3641,4292.6,4292.5,3.2187]
[1757437425560,4.3141,4292.6,4292.5,3.2187]
[1757437427062,4.3141,4292.6,4292.5,7.2187]
[1757437429153,4.3141,4292.6,4292.5,3.2187]
[1757437429365,1.68,4292.6,4292.5,2.1327]
[1757437429967,1.68,4292.6,4292.5,3.2293]
[1757437431564,1.68,4292.6,4292.5,7.2293]
[1757437436971,3.2211,4292.6,4292.5,7.2293]
[1757437447074,3.1011,4292.6,4292.5,7.2293]
[1757437447877,3.1011,4292.6,4292.5,3.2293]
[1757437450479,1.5411,4292.6,4292.5,3.2293]
[1757437450681,3.2078,4294.8,4293.6,1.7895]
[1757437450884,0.6707,4293.7,4293.6,2.4624]
[1757437451087,0.6707,4293.7,4293.6,5.9052]
[1757437452385,1.3532,4293.7,4293.6,5.9052]
[1757437452685,1.3532,4293.7,4293.5,0.412]
[1757437452686,1.3532,4293.2,4293.1,1.7895]
[1757437452887,1.3532,4293.2,4293.1,2.0245]
[1757437453088,1.3532,4293.2,4293.1,2.6974]
[1757437454387,2.8885,4294.1,4294.0,1.1049]
[1757437454682,7.6719,4294.1,4294.0,3.1094]
[1757437454886,6.5632,4294.1,4294.0,3.1094]
[1757437455188,3.3832,4294.1,4294.0,3.1094]
[1757437456091,3.3832,4294.1,4294.0,3.37021128]
[1757437456292,3.3832,4294.1,4294.0,3.1094]
[1757437456791,3.3832,4294.1,4294.0,3.36265004]
[1757437458091,3.7985,4294.1,4294.0,1.7436]
[1757437458884,3.7985,4294.1,4294.0,3.139]
[1757437458885,3.3832,4294.1,4294.0,3.139]
[1757437459085,2.03,4294.1,4294.0,3.139]
[1757437459286,3.359,4294.1,4294.0,3.139]
[1757437460691,2.03,4294.1,4294.0,3.139]
[1757437462790,2.6945,4294.1,4294.0,2.904]
[1757437462993,3.7743,4294.1,4294.0,1.7436]
[1757437463889,2.03,4294.1,4294.0,3.139]
[1757437464088,1.1083,4294.5,4294.0,2.0424]
[1757437464389,5.4583,4294.5,4294.4,2.4583]
[1757437464594,4.35,4294.5,4294.4,2.6933]
[1757437467987,1.4,4294.5,4294.4,2.6933]
[1757437468191,1.23692776,4294.5,4294.4,2.6933]
[1757437473699,1.23692776,4294.5,4294.4,2.4583]
[1757437474202,1.90142776,4294.5,4294.4,2.6933]
[1757437474608,1.23692776,4294.5,4294.4,2.6933]
[1757437475706,1.23692776,4294.5,4294.4,2.4583]
[1757437475906,1.23692776,4294.5,4294.4,2.6933]
[1757437477294,1.1072,4294.8,4294.4,1.6304]
[1757437477500,3.7562,4294.8,4294.7,1.7611]
[1757437477700,4.1715,4294.8,4294.7,1.9961]
[1757437477999,3.0643,4294.8,4294.7,1.2979]
[1757437478200,3.1643,4294.8,4294.7,1.2979]
[1757437480101,4.5368,4295.5,4295.4,1.7611]
[1757437480302,8.9268,4295.5,4295.4,2.6933]
[1757437480808,8.9268,4295.5,4295.4,1.9961]
[1757437481009,9.3421,4295.5,4295.4,1.9961]
[1757437481306,9.3421,4295.5,4295.4,1.0629]
[1757437481608,9.3421,4295.5,4295.4,0.235]
[1757437481911,9.3421,4295.5,4295.4,1.2979]
[1757437483606,9.3421,4295.5,4295.1,1.0629]
[1757437483807,0.4153,4295.4,4295.3,1.0629]
[1757437484114,5.6843,4295.4,4295.3,1.0629]
[1757437484409,5.6843,4295.4,4295.3,1.2979]
[1757437487811,5.6843,4295.4,4295.3,1.9961]
[1757437488116,5.6843,4295.4,4295.3,1.2979]
[1757437488618,5.6843,4295.4,4295.3,1.0629]
[1757437488809,5.6843,4295.4,4295.3,1.2979]
[1757437489319,5.269,4295.4,4295.3,1.9795]
[1757437490216,5.269,4295.4,4295.3,2.6584]
[1757437491416,5.269,4295.4,4295.0,4.6793]
[1757437491613,5.269,4295.4,4294.6,2.0787632]
[1757437491614,1.2522,4294.8,4294.7,1.0732]
[1757437491814,1.2522,4294.8,4294.7,2.6687]
[1757437492014,0.6261,4294.8,4294.7,2.6687]
[1757437494124,0.6261,4295.2,4295.1,2.4337]
[1757437494324,6.8022,4295.2,4295.1,2.6687]
[1757437498224,6.1761,4295.2,4295.1,5.8765]
[1757437498422,1.1049,4295.6,4295.5,0.3913]
[1757437498615,6.451,4295.6,4295.5,3.06]
[1757437500024,7.0771,4295.6,4295.5,3.06]
[1757437501625,7.4684,4295.6,4295.5,1.3082]
[1757437501925,7.4684,4295.6,4295.2,1.0732]
[1757437501926,7.0771,4295.6,4295.2,1.0732]
[1757437502222,1.2522,4295.4,4295.3,1.9898]
[1757437502426,6.2022,4295.4,4295.3,2.6687]
[1757437503618,1.0061,4295.4,4295.3,2.6687]
[1757437504728,1.6322,4295.4,4295.3,2.6687]
[1757437505023,2.0235,4295.4,4295.3,1.3082]
[1757437505526,0.6261,4295.4,4295.3,2.4337]
[1757437505730,0.6261,4295.4,4295.3,2.6687]
[1757437505925,1.2522,4295.4,4295.3,2.6687]
[1757437506229,2.87,4295.4,4295.3,0.235]
[1757437506431,1.2522,4295.4,4295.3,1.9898]
[1757437506621,0.6261,4295.4,4295.3,2.6687]
[1757437507020,4.2135,4295.4,4295.3,1.7548]
[1757437507224,4.2135,4295.4,4295.3,1.3082]
[1757437508123,4.2135,4295.4,4295.1,4.281]
[1757437508124,1.6435,4295.2,4295.1,4.281]
[1757437508323,3.2835,4295.2,4295.1,4.516]
[1757437508531,3.2835,4295.2,4295.1,1.9898]
[1757437508923,3.2835,4295.2,4294.6,5.2865632]
[1757437508924,6.5222,4295.2,4294.6,5.2865632]
[1757437509122,1.6435,4294.8,4294.7,1.3082]
[1757437509324,6.7635,4294.8,4294.7,1.3082]
[1757437509623,6.7635,4294.8,4294.7,1.9898]
[1757437510024,1.6435,4294.8,4294.7,1.3082]
[1757437510226,6.7835,4294.8,4294.7,1.3082]
[1757437510629,6.5122,4294.8,4294.7,1.9898]
[1757437510926,6.5122,4294.8,4294.7,2.6687]
[1757437512022,6.5122,4294.8,4294.7,2.4337]
[1757437512223,6.5122,4294.8,4294.7,2.6687]
[1757437512423,6.9035,4294.8,4294.7,1.0732]
[1757437512626,6.9035,4294.8,4294.7,0.235]
[1757437513025,1.6435,4294.7,4294.6,4.281]
[1757437513328,6.5735,4294.7,4294.6,4.516]
[1757437515040,6.1822,4294.7,4294.6,5.8765]
[1757437517841,6.1822,4294.7,4294.6,5.6415]
[1757437518046,6.5363,4294.7,4294.6,4.516]
[1757437518249,6.5363,4294.7,4294.6,5.188]
[1757437518640,6.5363,4294.7,4294.6,1.3082]
[1757437520343,6.1822,4294.7,4294.6,1.9802]
[1757437523752,6.5363,4294.7,4294.6,1.3082]
[1757437524552,6.5363,4294.7,4294.6,2.6474]
[1757437524553,6.1822,4294.7,4294.6,2.6474]
[1757437528454,4.93,4294.7,4294.6,2.6474]
[1757437528846,5.4965,4294.7,4294.6,2.6474]
[1757437529444,6.063,4294.7,4294.6,2.6474]
[1757437530847,1.4971,4294.7,4294.6,1.3082]
[1757437531944,1.4871,4294.7,4294.6,1.3082]
[1757437532242,1.7171,4294.7,4294.6,1.3082]
[1757437532944,4.7771,4294.7,4294.6,1.3082]
[1757437533845,4.7771,4294.7,4294.5,33.9333]
[1757437533846,4.423,4294.7,4294.5,33.9333]
[1757437534048,0.3541,4294.6,4294.5,33.535]
[1757437534258,5.2641,4294.6,4294.5,33.77]
[1757437535152,5.2641,4294.6,4294.5,34.7741]
[1757437536548,5.2641,4294.6,4294.5,35.1777]
[1757437538452,4.91,4294.6,4294.5,35.1777]
[1757437538652,5.2641,4294.6,4294.5,35.1777]
[1757437539355,6.3971,4294.6,4294.5,1.6427]
[1757437540347,1.4724,4294.2,4293.5,0.3913]
[1757437540549,3.2078,4293.6,4293.5,1.6304]
[1757437540853,3.2078,4293.6,4293.5,2.9696]
[1757437540854,8.2878,4293.6,4293.5,2.9696]
[1757437547748,8.2878,4293.6,4293.5,2.9696]
[1757437548755,8.2878,4293.6,4293.5,2.7346]
[1757437548962,8.2878,4293.6,4293.5,1.6304]
[1757437549261,8.2878,4293.6,4293.5,1.3954]
[1757437549558,8.2878,4293.6,4293.5,1.6304]
[1757437549756,8.2878,4293.6,4293.5,2.2792]
[1757437549960,8.2878,4293.6,4293.5,2.9454]
[1757437551665,8.2878,4293.6,4293.5,2.2792]
[1757437552061,8.2878,4293.6,4293.5,1.6304]
[1757437554866,8.2878,4293.6,4293.5,2.9454]
[1757437556571,8.2878,4293.6,4293.5,2.2792]
[1757437559172,8.2878,4293.6,4293.5,1.6304]
[1757437559565,8.2878,4293.6,4293.5,1.2391]
[1757437560165,8.2878,4293.6,4293.5,1.4015]
[1757437560368,8.2878,4293.6,4293.5,0.235]
[1757437560574,8.2878,4293.6,4293.0,1.0401]
[1757437560872,8.2878,4293.6,4293.2,1.0009]
[1757437561071,8.2878,4293.6,4293.1,0.162]
[1757437561072,8.2878,4293.6,4293.1,0.8108]
[1757437561271,8.2878,4293.6,4293.2,1.0009]
[1757437561469,8.2878,4293.6,4293.1,1.0009]
[1757437561671,8.2878,4293.6,4293.3,0.235]
[1757437561975,8.2878,4293.6,4293.4,1.0009]
[1757437562176,8.2878,4293.6,4293.3,0.235]
[1757437562673,8.2878,4293.6,4293.4,1.0009]
[1757437562870,8.2878,4293.6,4293.3,0.235]
[1757437563267,8.2878,4293.6,4293.4,1.0009]
[1757437563467,8.2878,4293.6,4293.0,0.3913]
[1757437563670,3.2078,4293.1,4293.0,0.3913]
[1757437563984,8.9878,4293.1,4293.0,0.3913]
[1757437564174,8.9878,4293.1,4293.0,1.3922]
[1757437564973,8.9878,4293.1,4293.0,2.041]
[1757437565673,8.9878,4293.1,4293.0,2.7072]
[1757437565981,10.0867,4293.1,4293.0,2.7072]
[1757437571982,10.0867,4293.1,4292.5,0.4036]
[1757437572180,3.2078,4292.6,4292.5,1.4045]
[1757437572380,8.1478,4292.6,4292.5,2.2883]
[1757437572576,8.1478,4292.6,4292.5,2.9545]
[1757437575389,4.94,4292.6,4292.5,2.9545]
[1757437575688,1.0989,4293.1,4293.0,0.3974]
[1757437575990,1.0989,4293.1,4293.0,6.1561]
[1757437576288,1.0989,4293.1,4293.0,10.1561]
[1757437579088,1.0989,4293.1,4293.0,6.9483]
[1757437579291,1.0989,4293.1,4293.0,10.1561]
[1757437580692,1.7387,4293.1,4293.0,6.9483]
[1757437580991,3.373,4293.1,4293.0,2.5509]
[1757437581382,1.0989,4293.1,4293.0,2.9308]
[1757437585994,1.0989,4293.1,4293.0,6.1386]
[1757437588094,0.94503748,4293.9,4293.8,1.392]
[1757437588296,7.49613748,4293.9,4293.8,2.4151]
[1757437588495,7.49613748,4293.9,4293.8,1.627]
[1757437590488,2.6804,4293.5,4293.4,0.6963]
[1757437590691,2.9004,4293.5,4293.4,0.9313]
[1757437590890,5.6174,4293.5,4293.4,0.235]
[1757437591098,2.0274,4293.5,4293.4,0.235]
[1757437591296,2.0274,4293.5,4293.4,0.9313]
[1757437591497,7.5004,4293.5,4293.4,0.9313]
[1757437593598,4.4904,4293.5,4293.4,0.9313]
[1757437597503,6.7404,4293.5,4293.4,0.235]
[1757437601506,6.7404,4293.5,4293.4,0.9313]
[1757437601910,3.5904,4293.5,4293.4,0.9313]
[1757437603607,3.5904,4293.5,4293.4,0.235]
[1757437603911,7.2104,4293.5,4293.4,0.235]
[1757437609520,1.3425,4293.1,4293.0,3.2078]
[1757437609719,2.5314,4293.1,4293.0,3.4428]
[1757437609917,2.2714,4293.1,4293.0,3.4428]
[1757437610919,4.9514,4293.1,4293.0,2.1762]
[1757437611110,2.6662,4292.5,4292.4,0.235]
[1757437611317,7.6762,4292.5,4292.4,0.235]
[1757437611816,6.6041,4292.5,4292.4,2.5992]
[1757437612715,7.2814,4292.5,4292.4,2.5992]
[1757437612917,7.6762,4292.5,4292.4,0.235]
[1757437613418,6.7473,4292.5,4291.8,3.2078]
[1757437613614,6.7473,4292.5,4292.0,0.9996]
[1757437613615,5.4048,4292.5,4292.0,0.9996]
[1757437613811,2.2714,4292.4,4292.3,2.3642]
[1757437614123,7.1914,4292.4,4292.3,2.5992]
[1757437616326,0.66869483,4292.7,4292.6,1.3646]
[1757437616531,6.63599483,4292.7,4292.6,2.5992]
[1757437616920,7.56489483,4292.7,4292.6,2.5992]
[1757437618022,5.95869483,4292.7,4292.6,2.5992]
[1757437618224,5.29349483,4292.7,4292.6,2.5992]
[1757437618526,0.13349483,4292.7,4292.6,2.5992]
[1757437621627,1.72759483,4292.7,4292.6,2.5992]
[1757437621825,0.13349483,4292.7,4292.6,6.5992]
[1757437624933,0.13349483,4292.7,4292.6,2.5992]
[1757437626432,0.13349483,4292.7,4292.6,6.5992]
[1757437627033,0.00349483,4292.7,4292.6,6.5992]
[1757437630728,0.00349483,4292.7,4292.6,40.1502]
[1757437634640,0.11989483,4292.7,4292.6,40.1502]
[1757437642243,0.11989483,4292.7,4292.6,36.1502]
[1757437644446,0.11989483,4292.7,4292.6,38.2289632]
[1757437646634,0.11989483,4292.7,4292.6,36.1502]
[1757437650046,1.04719483,4292.7,4292.6,36.1502]
[1757437650237,1.04719483,4292.7,4292.6,38.23580565]
[1757437650947,0.11989483,4292.7,4292.6,38.23580565]
[1757437651836,1.04719483,4292.7,4292.6,38.23580565]
[1757437652042,1.04719483,4292.7,4292.6,34.2344]
[1757437652341,5.89719483,4292.7,4292.6,33.786]
[1757437652540,9.89719483,4292.7,4292.6,33.786]
[1757437653446,9.89719483,4292.7,4292.6,33.551]
[1757437653638,9.89719483,4292.7,4292.6,33.786]
[1757437655338,9.89719483,4292.7,4292.6,34.7861]
[1757437659355,5.89719483,4292.7,4292.6,34.7861]
[1757437661652,4.96989483,4292.7,4292.6,34.7861]
[1757437662252,0.11989483,4292.7,4292.6,34.7861]
[1757437667454,1.10889483,4292.7,4292.6,34.7861]
[1757437668259,1.10889483,4292.7,4292.6,34.5511]
[1757437668458,1.10889483,4292.7,4292.6,34.7861]
[1757437669164,0.11989483,4292.7,4292.6,34.7861]
[1757437671861,1.10889483,4292.7,4292.6,34.7861]
[1757437672061,0.11989483,4292.7,4292.6,34.7861]
[1757437672662,1.10889483,4292.7,4292.6,34.5511]
[1757437672860,1.10889483,4292.7,4292.6,34.7861]
[1757437673961,1.10889483,4292.7,4292.6,2.4461]
[1757437673962,0.11989483,4292.7,4292.6,2.4461]
[1757437678752,1.77409483,4292.7,4292.6,2.4461]
[1757437679153,7.16599483,4292.7,4292.6,2.4461]
[1757437679363,4.40599483,4292.7,4292.6,2.4461]
[1757437681266,4.40599483,4292.7,4292.6,1.6097]
[1757437681454,4.40599483,4292.7,4292.6,1.8447]
[1757437682264,7.29599483,4292.7,4292.6,1.8447]